Service Area,Expense Type,Date,Transaction Number,Amount,Supplier
Highways Pfi Project,Hire Of General Equi,2010-04-12,5000071488,550.0,Happy Daze
Highways Pfi Project,Agency Staff,2010-04-19,5000073012,-932.4,Matchtech Group
Highways Pfi Project,Agency Staff,2010-04-19,5000073005,932.4,Matchtech Group
Highways Pfi Project,Agency Staff,2010-04-19,5000073008,932.4,Matchtech Group
Highways Pfi Project,Agency Staff,2010-04-19,5000073009,932.4,Matchtech Group
Highways Pfi Project,Building & Room Rent,2010-04-26,5000074560,3375.0,Charles Stanley Group Limited
Highways Pfi Project,Building & Room Rent,2010-04-26,5000074561,548.75,Charles Stanley Group Limited
Highways Pfi Project,Agency Staff,2010-04-26,5000074510,932.4,Matchtech Group
Highways Pfi Project,Hire Of Facilities,2010-04-26,5000074526,851.06,Royal Yacht Squadron
Highways Pfi Project,Catering Purchases,2010-04-26,5000074526,3154.89,Royal Yacht Squadron
Highways Pfi Project,Office Equipment,2010-04-26,5000074506,2001.0,Island Furnishing Ltd
Highways Pfi Project,Consultants Fees,2010-04-27,5000074863,2220.96,Wdm Limited
Highways Pfi Project,Consultants Fees,2010-04-27,5000074868,15900.0,Wdm Limited
Highways Pfi Project,Agency Staff,2010-04-27,5000074874,858.0,Hays Specialist Recruitment Ltd
Highways Pfi Project,Agency Staff,2010-04-28,5000075057,932.4,Matchtech Group
Highways Pfi Project,Consultants Fees,2010-04-30,5000075723,2722.0,Wdm Limited
Highways Pfi Project,Consultants Fees,2010-04-30,5000075723,2722.0,Wdm Limited
Highways Pfi Project,Professional Service,2010-05-04,5000075927,2972.23,Dla Piper Uk Llp
Highways Pfi Project,Professional Service,2010-05-04,5000075927,27574.9,Dla Piper Uk Llp
Highways Pfi Project,Professional Service,2010-05-04,5000075921,17605.34,Pricewaterhouse Coopers Llp
Highways Pfi Project,Consultants Fees,2010-05-12,5000077598,5218.92,Wdm Limited
Highways Pfi Project,Train And Conference,2010-05-13,5000077953,1525.0,Bevan Young Associates
Highways Pfi Project,Agency Staff,2010-06-03,5000081851,804.38,Hays Specialist Recruitment Ltd
Highways Pfi Project,Train And Conference,2010-06-03,5000081713,2100.0,Bevan Young Associates
Highways Pfi Project,Agency Staff,2010-06-07,5000082330,3729.6,Matchtech Group
Highways Pfi Project,Professional Service,2010-06-08,5000082620,660.15,Dla Piper Uk Llp
Highways Pfi Project,Professional Service,2010-06-08,5000082620,34338.4,Dla Piper Uk Llp
Highways Pfi Project,Professional Service,2010-06-08,5000082614,1141.89,Pricewaterhouse Coopers Llp
Highways Pfi Project,Professional Service,2010-06-08,5000082614,23149.15,Pricewaterhouse Coopers Llp
Highways Pfi Project,Office Equipment,2010-06-29,5000087348,681.89,Ricoh Uk Limited
Highways Pfi Project,Agency Staff,2010-06-29,5000087216,932.4,Matchtech Group
Highways Pfi Project,Train And Conference,2010-06-29,5000087208,891.0,Geodata Institute
Highways Pfi Project,Computer Purch & Ren,2010-06-29,5000087203,666.2,Banner Business Supplies Ltd
Highways Pfi Project,Agency Staff,2010-06-30,5000087456,4662.0,Matchtech Group
Highways Pfi Project,Agency Staff,2010-07-01,5000087662,-4662.0,Matchtech Group
Highways Pfi Project,Agency Staff,2010-07-01,5000087672,932.4,Matchtech Group
Highways Pfi Project,Professional Service,2010-07-05,5000088344,22230.0,Pricewaterhouse Coopers Llp
Highways Pfi Project,Professional Service,2010-07-05,5000088364,-22230.0,Pricewaterhouse Coopers Llp
Highways Pfi Project,Agency Staff,2010-07-06,5000088697,932.4,Matchtech Group
Highways Pfi Project,Agency Staff,2010-07-06,5000088696,932.4,Matchtech Group
Highways Pfi Project,Agency Staff,2010-07-06,5000088543,932.4,Matchtech Group
Highways Pfi Project,Professional Service,2010-07-06,5000088494,22230.0,Pricewaterhouse Coopers Llp
Highways Pfi Project,Professional Service,2010-07-06,5000088500,32979.7,Dla Piper Uk Llp
Highways Pfi Project,Professional Service,2010-07-06,5000088500,696.39,Dla Piper Uk Llp
Highways Pfi Project,Agency Staff,2010-07-07,5000088878,-932.4,Matchtech Group
Highways Pfi Project,Agency Staff,2010-07-07,5000088879,-932.4,Matchtech Group
Highways Pfi Project,Agency Staff,2010-07-07,5000088895,932.4,Matchtech Group
Highways Pfi Project,Professional Service,2010-07-08,5000089150,33625.0,Wsp Uk Ltd
Highways Pfi Project,Professional Service,2010-07-08,5000089150,1958.24,Wsp Uk Ltd
Highways Pfi Project,Consultants Fees,2010-07-09,5000089361,38000.0,Wdm Limited
Highways Pfi Project,Train And Conference,2010-07-15,5000090444,1400.0,Bevan Young Associates
Highways Pfi Project,Train And Conference,2010-07-20,5000091390,1600.0,Local Partnerships
Highways Pfi Project,Building & Room Rent,2010-07-30,5000093565,548.75,Charles Stanley Group Limited
Highways Pfi Project,Building & Room Rent,2010-07-30,5000093564,3375.0,Charles Stanley Group Limited
Highways Pfi Project,Professional Service,2010-08-05,5000094442,3452.12,Pricewaterhouse Coopers Llp
Highways Pfi Project,Professional Service,2010-08-05,5000094444,10187.2,Dla Piper Uk Llp
Highways Pfi Project,Catering Purchases,2010-08-05,5000094446,599.16,Dla Piper Uk Llp
Highways Pfi Project,Consultants Fees,2010-08-10,5000095215,5588.84,Wdm Limited
Highways Pfi Project,Professional Service,2010-08-13,5000095914,5232.46,Pricewaterhouse Coopers Llp
Highways Pfi Project,Professional Service,2010-08-17,5000096368,4710.06,Wsp Uk Ltd
Highways Pfi Project,Professional Service,2010-08-17,5000096366,44190.44,Wsp Uk Ltd
Highways Pfi Project,Professional Service,2010-08-17,5000096369,45517.51,Wsp Uk Ltd
Highways Pfi Project,Train And Conference,2010-08-25,5000097910,1750.0,Bevan Young Associates
Highways Pfi Project,Professional Service,2010-09-06,5000099479,17794.2,Dla Piper Uk Llp
Highways Pfi Project,Professional Service,2010-09-06,5000099479,747.82,Dla Piper Uk Llp
Highways Pfi Project,Mobile Telecoms,2010-09-06,1900226514,868.59,Orange Personal Communic Services
Highways Pfi Project,Train And Conference,2010-09-14,5000101092,2100.0,Bevan Young Associates
Highways Pfi Project,Consultants Fees,2010-09-14,5000101186,-38000.0,Wdm Limited
Highways Pfi Project,Agency Staff,2010-09-15,5105614020,-804.38,Hays Specialist Recruitment Ltd
Highways Pfi Project,Office Equipment,2010-09-27,5000103452,776.08,Ricoh Uk Limited
Highways Pfi Project,Professional Service,2010-09-28,5000103656,13199.09,Pricewaterhouse Coopers Llp
Highways Pfi Project,Consultants Fees,2010-09-29,5000104073,21736.81,Wdm Limited
Highways Pfi Project,Consultants Fees,2010-09-29,5000104078,2748.54,Wdm Limited
Highways Pfi Project,Consultants Fees,2010-09-30,5000104177,1000.0,Wdm Limited
Highways Pfi Project,Office Equipment,2010-10-06,1900239183,776.08,Ricoh Uk Limited
Highways Pfi Project,Train And Conference,2010-10-18,5000107346,1050.0,Bevan Young Associates
Highways Pfi Project,Professional Service,2010-10-18,5000107389,2549.8,Dla Piper Uk Llp
Highways Pfi Project,Consultants Fees,2010-10-20,5000107854,10320.81,Wdm Limited
Highways Pfi Project,Professional Service,2010-10-20,5000107889,9480.66,Pricewaterhouse Coopers Llp
Highways Pfi Project,Building & Room Rent,2010-10-20,5000107955,548.75,Charles Stanley Group Limited
Highways Pfi Project,Building & Room Rent,2010-10-20,5000107954,3375.0,Charles Stanley Group Limited
Highways Pfi Project,Professional Service,2010-10-25,5000108618,22428.67,Wsp Uk Ltd
Highways Pfi Project,Professional Service,2010-10-27,5105623042,-835.2,Dla Piper Uk Llp
Highways Pfi Project,Consultants Fees,2010-10-29,5000109734,3000.0,Wdm Limited
Highways Pfi Project,Consultants Fees,2010-10-29,5000109734,3000.0,Wdm Limited
Highways Pfi Project,Vehicle Hire Interna,2010-11-08,5000111255,520.17,Bartletts Service Station
Highways Pfi Project,Professional Service,2010-11-10,5000111709,15855.6,Dla Piper Uk Llp
Highways Pfi Project,Professional Service,2010-11-11,5000112018,83153.32,Wsp Uk Ltd
Highways Pfi Project,Train And Conference,2010-11-15,5000112590,-1600.0,Local Partnerships
Highways Pfi Project,Office Equipment,2010-11-16,5000112847,-776.08,Ricoh Uk Limited
Highways Pfi Project,Catering Purchases,2010-11-18,5000113196,774.14,Dla Piper Uk Llp
Highways Pfi Project,Professional Service,2010-11-18,5000113177,7618.4,Dla Piper Uk Llp
Highways Pfi Project,Professional Service,2010-11-18,5000113189,12763.93,Pricewaterhouse Coopers Llp
Highways Pfi Project,Professional Service,2010-11-19,5000113437,-83153.32,Wsp Uk Ltd
Highways Pfi Project,Consultants Fees,2010-11-26,5000114518,27051.35,Wdm Limited
Highways Pfi Project,Train And Conference,2010-12-02,5000115435,700.0,Bevan Young Associates
Highways Pfi Project,Office Equipment,2010-12-13,1900272219,1884.28,Ricoh Uk Limited
Highways Pfi Project,Vehicle Maint Costs,2010-12-15,5000117384,670.09,Island Coachworks
Highways Pfi Project,Professional Service,2011-01-07,5000120246,587.8,Dla Piper Uk Llp
Highways Pfi Project,Catering Purchases,2011-01-07,5000120249,601.66,Dla Piper Uk Llp
Highways Pfi Project,Professional Service,2011-01-07,5000120246,40583.1,Dla Piper Uk Llp
Highways Pfi Project,Professional Service,2011-01-07,5000120254,63150.0,Wsp Uk Ltd
Highways Pfi Project,Catering Purchases,2011-01-20,5000122540,521.25,Wight Bites
Highways Pfi Project,Service Charges,2011-01-26,5000123457,548.75,Charles Stanley Group Limited
Highways Pfi Project,Building & Room Rent,2011-01-26,5000123458,3375.0,Charles Stanley Group Limited
Highways Pfi Project,Insurance Premiums P,2011-01-27,5000123693,1575.0,Redacted Personal Data
Highways Pfi Project,Insurance Premiums P,2011-01-27,5000123618,1575.0,Redacted Personal Data
Highways Pfi Project,Insurance Premiums P,2011-01-27,5000123625,-1575.0,Redacted Personal Data
Highways Pfi Project,Professional Service,2011-02-01,5000124447,-20003.32,Wsp Uk Ltd
Highways Pfi Project,Professional Service,2011-02-01,5000124480,9680.28,Wsp Uk Ltd
Highways Pfi Project,Professional Service,2011-02-01,5000124445,20003.32,Wsp Uk Ltd
Highways Pfi Project,Consultants Fees,2011-02-03,5000124862,11250.0,4 Projects Limited
Highways Pfi Project,Consultants Fees,2011-02-03,5000124863,-11250.0,4 Projects Limited
Highways Pfi Project,Professional Service,2011-02-03,5000125124,15449.89,Pricewaterhouse Coopers Llp
Highways Pfi Project,Professional Service,2011-02-03,5000125116,4920.0,Dla Piper Uk Llp
Highways Pfi Project,Professional Service,2011-02-03,5000125082,4920.0,Dla Piper Uk Llp
Highways Pfi Project,Professional Service,2011-02-03,5000125082,1343.15,Dla Piper Uk Llp
Highways Pfi Project,Professional Service,2011-02-03,5000125108,-1343.15,Dla Piper Uk Llp
Highways Pfi Project,Professional Service,2011-02-03,5000125108,-4920.0,Dla Piper Uk Llp
Highways Pfi Project,Train And Conference,2011-02-04,5000125234,1088.84,Wdm Limited
Highways Pfi Project,Consultants Fees,2011-02-04,5000125234,4355.36,Wdm Limited
Highways Pfi Project,Professional Service,2011-02-11,5000126555,55753.9,Dla Piper Uk Llp
Highways Pfi Project,Professional Service,2011-02-11,5000126555,1332.5,Dla Piper Uk Llp
Highways Pfi Project,Catering Purchases,2011-02-21,5000128234,757.92,Dla Piper Uk Llp
Highways Pfi Project,Consultants Fees,2011-02-22,5000128282,37751.9,Geotechnical Engineering Ltd
Highways Pfi Project,Professional Service,2011-02-22,5000128328,17957.32,Pricewaterhouse Coopers Llp
Highways Pfi Project,Professional Service,2011-02-22,5000128334,9274.63,Pricewaterhouse Coopers Llp
Highways Pfi Project,Professional Service,2011-02-22,5000128328,9274.63,Pricewaterhouse Coopers Llp
Highways Pfi Project,Professional Service,2011-02-22,5000128330,-9274.63,Pricewaterhouse Coopers Llp
Highways Pfi Project,Professional Service,2011-02-22,5000128330,-17957.32,Pricewaterhouse Coopers Llp
Highways Pfi Project,Professional Service,2011-03-04,5000130342,74818.4,Dla Piper Uk Llp
Highways Pfi Project,Consultants Fees,2011-03-07,5000130673,8545.0,Wdm Limited
Highways Pfi Project,Consultants Fees,2011-03-07,5000130667,10855.0,Wdm Limited
Highways Pfi Project,Professional Service,2011-03-07,5000130663,10953.0,Wsp Uk Ltd
Highways Pfi Project,Office Equipment,2011-03-15,1900311695,953.66,Ricoh Uk Limited
Highways Pfi Project,Consultants Fees,2011-03-21,5000133000,2100.0,Wdm Limited
Highways Pfi Project,Catering Purchases,2011-03-29,5000134251,750.64,Dla Piper Uk Llp
Highways Pfi Project,Professional Service,2011-03-29,5000134240,18820.8,Dla Piper Uk Llp
Highways Pfi Project,Consultants Fees,2011-03-29,5000134414,3787.5,Redacted Personal Data
Highways Pfi Project,Professional Service,2011-03-29,5000134430,5089.0,Pricewaterhouse Coopers Llp
Highways Pfi Project,Professional Service,2011-03-29,5000134228,3850.0,Wsp Uk Ltd
Highways Pfi Project,Professional Service,2011-03-30,5000134647,10329.0,Pricewaterhouse Coopers Llp
Highways Pfi Project,Professional Service,2011-03-31,5000135124,11075.61,Wsp Uk Ltd
Highways Pfi Project,Professional Service,2011-03-31,5000135144,10329.38,Pricewaterhouse Coopers Llp
Highways Pfi Project,Professional Service,2011-03-31,5000135142,-10329.0,Pricewaterhouse Coopers Llp
Highways Pfi Project,Consultants Fees,2011-03-31,5000134936,1100.0,Wdm Limited
Highways Pfi Project,Train And Conference,2011-03-31,5000135118,2800.0,Bevan Young Associates
Highways Pfi Project,Professional Service,2011-04-08,5105657112,-9593.13,Pricewaterhouse Coopers Llp
Highways Pfi Project,Professional Service,2011-04-12,5105657501,9593.13,Pricewaterhouse Coopers Llp
Highways Pfi Project,Catering Purchases,2011-04-14,5000137273,619.52,Dla Piper Uk Llp
Highways Pfi Project,Electricity,2011-04-19,1900330833,1620.81,Charles Stanley Group Limited
Highways Pfi Project,Professional Service,2011-05-09,5000140164,6881.4,Dla Piper Uk Llp
Highways Pfi Project,Professional Service,2011-05-16,5000141449,6283.15,Pricewaterhouse Coopers Llp
Highways Pfi Project,Professional Service,2011-05-17,5105663832,-1319.36,Wsp Uk Ltd
Highways Pfi Project,Professional Service,2011-05-18,5000141780,1870.75,Wsp Uk Ltd
Highways Pfi Project,Building & Room Rent,2011-05-23,5000142571,3375.0,Charles Stanley Group Limited
Highways Pfi Project,Service Charges,2011-05-25,5000142982,548.75,Charles Stanley Group Limited
Highways Pfi Project,Professional Service,2011-05-26,5000143180,37856.84,Wsp Uk Ltd
Highways Pfi Project,Professional Service,2011-05-26,5000143187,79624.38,Wsp Uk Ltd
Highways Pfi Project,Professional Service,2011-06-07,5000144465,40977.09,Pricewaterhouse Coopers Llp
Highways Pfi Project,Professional Service,2011-06-08,5000144684,5854.6,Dla Piper Uk Llp
Highways Pfi Project,Computer Purch & Ren,2011-06-16,5000146009,7396.0,Advance Laptop Solutions Ltd
Highways Pfi Project,Computer Purch & Ren,2011-06-16,5000146009,540.0,Advance Laptop Solutions Ltd
Highways Pfi Project,Computer Purch & Ren,2011-06-21,5000146677,556.0,Advance Laptop Solutions Ltd
Highways Pfi Project,Professional Service,2011-07-08,5000149141,24262.5,Dla Piper Uk Llp
Highways Pfi Project,Building & Room Rent,2011-07-14,5000150352,3375.0,Charles Stanley Group Limited
Highways Pfi Project,Service Charges,2011-07-14,5000150353,548.75,Charles Stanley Group Limited
Highways Pfi Project,Office Equipment,2011-07-21,1900375389,1867.66,Ricoh Uk Limited
Highways Pfi Project,Professional Service,2011-07-29,5000152237,15943.2,Dla Piper Uk Llp
Highways Pfi Project,Professional Service,2011-07-29,5000152202,49885.25,Pricewaterhouse Coopers Llp
Highways Pfi Project,Consultants Fees,2011-08-01,5000152450,10374.96,Wdm Limited
Highways Pfi Project,Consultants Fees,2011-08-18,5000155104,2475.0,Redacted Personal Data
Highways Pfi Project,Fixed Telephones,2011-08-26,5000156288,6000.0,Wdm Limited
Highways Pfi Project,Professional Service,2011-09-02,5000156796,643.4,Dla Piper Uk Llp
Highways Pfi Project,Consultants Fees,2011-09-05,5000156976,525.0,Wdm Limited
Highways Pfi Project,Consultants Fees,2011-09-05,5000156976,1058.5,Wdm Limited
Highways Pfi Project,Consultants Fees,2011-09-05,5000156976,2750.0,Wdm Limited
Highways Pfi Project,Consultants Fees,2011-09-05,5000156982,5800.0,Wdm Limited
Highways Pfi Project,Professional Service,2011-09-07,5000157383,9800.61,Pricewaterhouse Coopers Llp
Highways Pfi Project,Office Equipment,2011-09-08,1900394254,1356.15,Ricoh Uk Limited
Highways Pfi Project,Professional Service,2011-09-09,5000158000,14217.56,Wsp Uk Ltd
Highways Pfi Project,Professional Service,2011-09-12,5000158326,17423.63,Wsp Uk Ltd
Highways Pfi Project,Consultants Fees,2011-10-04,5000161198,21750.17,Terraconsult Ltd
Highways Pfi Project,Consultants Fees,2011-10-25,5000163821,35522.55,Wdm Limited
Highways Pfi Project,Consultants Fees,2011-10-25,5000163758,3175.5,Wdm Limited
Highways Pfi Project,Professional Service,2011-10-31,5000164513,12944.0,Wsp Uk Ltd
Highways Pfi Project,Professional Service,2011-10-31,5000164514,9189.83,Wsp Uk Ltd
Highways Pfi Project,Consultants Fees,2011-11-02,5000164666,21400.0,Wdm Limited
Highways Pfi Project,Building & Room Rent,2011-11-03,5000165066,3375.0,Charles Stanley Group Limited
Highways Pfi Project,Service Charges,2011-11-03,5000165067,548.75,Charles Stanley Group Limited
Highways Pfi Project,Consultants Fees,2011-11-07,5000165231,4700.0,Ue Associates Ltd
Highways Pfi Project,Hire Of Facilities,2011-11-10,5000166152,1591.25,Wotton House
Highways Pfi Project,Consultants Fees,2011-11-11,1900425531,4700.0,Ue Associates Ltd
Highways Pfi Project,Consultants Fees,2011-11-15,5000167347,1512.5,Wdm Limited
Highways Pfi Project,Consultants Fees,2011-11-15,5000167347,1375.0,Wdm Limited
Highways Pfi Project,Consultants Fees,2011-11-15,5000167347,550.0,Wdm Limited
Highways Pfi Project,Consultants Fees,2011-11-15,5000167318,3025.0,Wdm Limited
Highways Pfi Project,Consultants Fees,2011-11-15,5000167315,3412.5,Wdm Limited
Highways Pfi Project,Hire Of Facilities,2011-11-16,5000167535,4576.17,Wotton House
Highways Pfi Project,Hire Of Facilities,2011-11-22,5000168331,1209.17,The Quay Arts Trading Company Ltd
Highways Pfi Project,Office Equipment,2011-11-25,1700044708,-1112.94,Ricoh Uk Limited
Highways Pfi Project,Professional Service,2011-12-01,5000169503,11783.88,Pricewaterhouse Coopers Llp
Highways Pfi Project,Consultants Fees,2011-12-05,5000169825,1619.24,Wdm Limited
Highways Pfi Project,Consultants Fees,2011-12-06,5000170102,1312.5,Wdm Limited
Highways Pfi Project,Hire Of Facilities,2011-12-06,5000170064,1713.6,Regus Management Uk Ltd
Highways Pfi Project,Consultants Fees,2011-12-09,5000171395,5321.52,Terraconsult Ltd
Highways Pfi Project,Professional Service,2011-12-09,5000171383,7240.67,Wsp Uk Ltd
Highways Pfi Project,Professional Service,2011-12-09,5000171210,8003.6,Wsp Uk Ltd
Highways Pfi Project,Professional Service,2011-12-09,5000171451,18050.0,Pricewaterhouse Coopers Llp
Highways Pfi Project,Consultants Fees,2011-12-09,5000171437,-12000.0,Wdm Limited
Highways Pfi Project,Consultants Fees,2011-12-09,5000171433,12000.0,Wdm Limited
Highways Pfi Project,Consultants Fees,2011-12-12,5000171613,-1375.0,Wdm Limited
Highways Pfi Project,Consultants Fees,2011-12-12,5000171613,-550.0,Wdm Limited
Highways Pfi Project,Consultants Fees,2011-12-12,5000171611,1512.5,Wdm Limited
Highways Pfi Project,Consultants Fees,2011-12-12,5000171610,3025.0,Wdm Limited
Highways Pfi Project,Consultants Fees,2012-01-06,5000174385,4500.0,Wdm Limited
Highways Pfi Project,Consultants Fees,2012-01-06,5000174510,10500.0,Wdm Limited
Highways Pfi Project,Consultants Fees,2012-01-10,5000174953,82999.1,Wdm Limited
Highways Pfi Project,Consultants Fees,2012-01-12,5000175430,1375.0,Wdm Limited
Highways Pfi Project,Consultants Fees,2012-01-12,5000175430,550.0,Wdm Limited
Highways Pfi Project,Professional Services,2012-01-16,5000175761,7432.23,Pricewaterhouse Coopers Llp
Highways Pfi Project,Hire Of Facilities,2012-01-18,5000176059,1481.58,Wotton House
Highways Pfi Project,Professional Services,2012-01-20,5000176482,9436.58,Wsp Uk Ltd
Highways Pfi Project,Building Service Charges Payable,2012-01-20,5000176554,548.75,Charles Stanley Group Limited
Highways Pfi Project,Rent Of Buildings And Rooms,2012-01-20,5000176553,3375.0,Charles Stanley Group Limited
Highways Pfi Project,Consultants Fees,2012-01-23,5000176603,5500.0,Wdm Limited
Highways Pfi Project,Consultants Fees,2012-01-23,5000176603,1512.5,Wdm Limited
Highways Pfi Project,Professional Services,2012-01-23,5000176812,30417.84,Pricewaterhouse Coopers Llp
Highways Pfi Project,Professional Services,2012-01-31,5000177762,6327.28,Wsp Uk Ltd
Highways Pfi Project,Taxis   Contract Hire,2012-02-03,5000178270,790.0,Gm Cars Limited
Highways Pfi Project,Consultants Fees,2012-02-13,5000180071,33720.3,Burges Salmon Llp
Highways Pfi Project,Hire Of Facilities,2012-03-02,GPC,912.0,Horsley Conf Centre
Highways Pfi Project,Professional Services,2012-03-05,5000183212,57564.59,Pricewaterhouse Coopers Llp
Highways Pfi Project,Taxis   Contract Hire,2012-03-05,5000183152,-790.0,Gm Cars Limited
Highways Pfi Project,Consultants Fees,2012-03-06,5000183342,1295.0,Advanced Resource Managers It Ltd
Highways Pfi Project,Consultants Fees,2012-03-07,5000183547,1162.5,Jardine Lloyd Thompson
Highways Pfi Project,Agency Staff,2012-03-14,5000185383,610.2,Anchor Recruitment
Highways Pfi Project,Agency Staff,2012-03-14,5000185380,535.62,Anchor Recruitment
Highways Pfi Project,Agency Staff,2012-03-14,5000185382,555.96,Anchor Recruitment
Highways Pfi Project,Consultants Fees,2012-03-16,5000185936,-4500.0,Wdm Limited
Highways Pfi Project,Consultants Fees,2012-03-16,5000185937,4500.0,Wdm Limited
Highways Pfi Project,Professional Services,2012-03-19,5000186102,37856.84,Wsp Uk Ltd
Highways Pfi Project,Professional Services,2012-03-19,5000186101,-37856.84,Wsp Uk Ltd
Highways Pfi Project,Professional Services,2012-03-19,5000186150,2000.0,Redacted Personal Data
Highways Pfi Project,Professional Services,2012-03-19,5000186064,17154.28,Pricewaterhouse Coopers Llp
Highways Pfi Project,Consultants Fees,2012-03-19,5000186149,647.05,Urban Edge Environmental Consulting
Highways Pfi Project,Consultants Fees,2012-03-19,5000186149,4383.93,Urban Edge Environmental Consulting
Highways Pfi Project,Consultants Fees,2012-03-20,5000186304,7720.55,Urban Edge Environmental Consulting
Highways Pfi Project,Agency Staff,2012-03-27,5000187481,515.28,Anchor Recruitment
Highways Pfi Project,Agency Staff,2012-03-29,5000188159,535.62,Anchor Recruitment
Highways Pfi Project,Agency Staff,2012-03-29,5000188155,535.62,Anchor Recruitment
Highways Pfi Project,Hire Of Facilities,2012-03-30,5000188475,1280.0,De Vere Venues Horsley Park
Highways Pfi Project,Consultants Fees,2012-03-30,5000188433,15000.0,Local Partnerships Llp
Highways Pfi Project,Consultants Fees,2012-03-30,5000188512,3000.0,Wdm Limited
